{"text_format":"1","workbook":"xlsx","n_sheets":1,"sheets":["Журнал учета"],"not_rendered":{"charts":0,"images":0,"macros":1,"external_links":1,"defined_names":27,"comments":0,"pivot_tables":0},"unopened":[],"bounds":{"document_bytes":16777216,"sheet_cells":100000,"rows_first":2000,"rows_last":500,"rows_between":2000,"halvings":0,"cell_chars":16384,"cell_head_chars":4096},"cells_cut":0,"cells_raw":0,"read":"whole","date_system":"1900"}

{"sheet":"Журнал учета","index":0,"n_rows":171,"n_cols":9,"rows_kept":171,"cut":false,"hidden":false,"merged":[]}
["Дата занятия","День недели","Неделя","Время занятия","Зал","Имя зала в системе","Название программы","Тренер","Посещаемость"]
["2016-02-01",{"$f":"TEXT(ТЗанятияФитнесСтар[Дата занятия],\"ДДД\")","v":"Пн"},{"$f":"WEEKNUM(ТЗанятияФитнесСтар[[#This Row],[Дата занятия]],21)","v":5},"07:15:00","Зал 6",{"$f":"VLOOKUP(ТЗанятияФитнесСтар[Зал],#REF!,2,FALSE)","v":{"$error":"#REF!"}},"CrossFit","Исаев Мамед",7]
["2016-02-01",{"$f":"TEXT(ТЗанятияФитнесСтар[Дата занятия],\"ДДД\")","v":"Пн"},{"$f":"WEEKNUM(ТЗанятияФитнесСтар[[#This Row],[Дата занятия]],21)","v":5},"09:00:00","Зал 3",{"$f":"VLOOKUP(ТЗанятияФитнесСтар[Зал],#REF!,2,FALSE)","v":{"$error":"#REF!"}},"Cycle","Игнатченко  Анна",8]
["2016-02-01",{"$f":"TEXT(ТЗанятияФитнесСтар[Дата занятия],\"ДДД\")","v":"Пн"},{"$f":"WEEKNUM(ТЗанятияФитнесСтар[[#This Row],[Дата занятия]],21)","v":5},"09:00:00","Зал 4",{"$f":"VLOOKUP(ТЗанятияФитнесСтар[Зал],#REF!,2,FALSE)","v":{"$error":"#REF!"}},"Yoga-Lates","Мария Ловченко",10]
["2016-02-01",{"$f":"TEXT(ТЗанятияФитнесСтар[Дата занятия],\"ДДД\")","v":"Пн"},{"$f":"WEEKNUM(ТЗанятияФитнесСтар[[#This Row],[Дата занятия]],21)","v":5},"10:00:00","Зал 4",{"$f":"VLOOKUP(ТЗанятияФитнесСтар[Зал],#REF!,2,FALSE)","v":{"$error":"#REF!"}},"Body Core+","Янис Аболиньш",14]
["2016-02-01",{"$f":"TEXT(ТЗанятияФитнесСтар[Дата занятия],\"ДДД\")","v":"Пн"},{"$f":"WEEKNUM(ТЗанятияФитнесСтар[[#This Row],[Дата занятия]],21)","v":5},"17:00:00","Зал 4",{"$f":"VLOOKUP(ТЗанятияФитнесСтар[Зал],#REF!,2,FALSE)","v":{"$error":"#REF!"}},"Шейпинг-MIX","Светлана Сущкевич",15]
["2016-02-01",{"$f":"TEXT(ТЗанятияФитнесСтар[Дата занятия],\"ДДД\")","v":"Пн"},{"$f":"WEEKNUM(ТЗанятияФитнесСтар[[#This Row],[Дата занятия]],21)","v":5},"18:00:00","Зал 1",{"$f":"VLOOKUP(ТЗанятияФитнесСтар[Зал],#REF!,2,FALSE)","v":{"$error":"#REF!"}},"Zumba","Даша Пищальникова",11]
["2016-02-01",{"$f":"TEXT(ТЗанятияФитнесСтар[Дата занятия],\"ДДД\")","v":"Пн"},{"$f":"WEEKNUM(ТЗанятияФитнесСтар[[#This Row],[Дата занятия]],21)","v":5},"18:00:00","Зал 4",{"$f":"VLOOKUP(ТЗанятияФитнесСтар[Зал],#REF!,2,FALSE)","v":{"$error":"#REF!"}},"Body Pamp","Янис Аболиньш",24]
["2016-02-01",{"$f":"TEXT(ТЗанятияФитнесСтар[Дата занятия],\"ДДД\")","v":"Пн"},{"$f":"WEEKNUM(ТЗанятияФитнесСтар[[#This Row],[Дата занятия]],21)","v":5},"19:00:00","Зал 4",{"$f":"VLOOKUP(ТЗанятияФитнесСтар[Зал],#REF!,2,FALSE)","v":{"$error":"#REF!"}},"Yoga-Energy","Мария Ловченко",25]
["2016-02-01",{"$f":"TEXT(ТЗанятияФитнесСтар[Дата занятия],\"ДДД\")","v":"Пн"},{"$f":"WEEKNUM(ТЗанятияФитнесСтар[[#This Row],[Дата занятия]],21)","v":5},"19:00:00","Зал 1",{"$f":"VLOOKUP(ТЗанятияФитнесСтар[Зал],#REF!,2,FALSE)","v":{"$error":"#REF!"}},"Combat","Янис Аболиньш",17]
["2016-02-01",{"$f":"TEXT(ТЗанятияФитнесСтар[Дата занятия],\"ДДД\")","v":"Пн"},{"$f":"WEEKNUM(ТЗанятияФитнесСтар[[#This Row],[Дата занятия]],21)","v":5},"19:00:00","Зал 6",{"$f":"VLOOKUP(ТЗанятияФитнесСтар[Зал],#REF!,2,FALSE)","v":{"$error":"#REF!"}},"CrossFit","Исаев Мамед",12]
["2016-02-01",{"$f":"TEXT(ТЗанятияФитнесСтар[Дата занятия],\"ДДД\")","v":"Пн"},{"$f":"WEEKNUM(ТЗанятияФитнесСтар[[#This Row],[Дата занятия]],21)","v":5},"20:00:00","Зал 4",{"$f":"VLOOKUP(ТЗанятияФитнесСтар[Зал],#REF!,2,FALSE)","v":{"$error":"#REF!"}},"Stretch","Мария Москаленко",9]
["2016-02-01",{"$f":"TEXT(ТЗанятияФитнесСтар[Дата занятия],\"ДДД\")","v":"Пн"},{"$f":"WEEKNUM(ТЗанятияФитнесСтар[[#This Row],[Дата занятия]],21)","v":5},"20:00:00","Зал 5",{"$f":"VLOOKUP(ТЗанятияФитнесСтар[Зал],#REF!,2,FALSE)","v":{"$error":"#REF!"}},"Grappling","Исаев Мамед",22]
["2016-02-01",{"$f":"TEXT(ТЗанятияФитнесСтар[Дата занятия],\"ДДД\")","v":"Пн"},{"$f":"WEEKNUM(ТЗанятияФитнесСтар[[#This Row],[Дата занятия]],21)","v":5},"20:00:00","Зал 1",{"$f":"VLOOKUP(ТЗанятияФитнесСтар[Зал],#REF!,2,FALSE)","v":{"$error":"#REF!"}},"Yoga-Integr","Жане Заур",8]
["2016-02-02",{"$f":"TEXT(ТЗанятияФитнесСтар[Дата занятия],\"ДДД\")","v":"Вт"},{"$f":"WEEKNUM(ТЗанятияФитнесСтар[[#This Row],[Дата занятия]],21)","v":5},"07:15:00","Зал 6",{"$f":"VLOOKUP(ТЗанятияФитнесСтар[Зал],#REF!,2,FALSE)","v":{"$error":"#REF!"}},"CrossFit","Исаев Мамед",12]
["2016-02-02",{"$f":"TEXT(ТЗанятияФитнесСтар[Дата занятия],\"ДДД\")","v":"Вт"},{"$f":"WEEKNUM(ТЗанятияФитнесСтар[[#This Row],[Дата занятия]],21)","v":5},"09:00:00","Зал 4",{"$f":"VLOOKUP(ТЗанятияФитнесСтар[Зал],#REF!,2,FALSE)","v":{"$error":"#REF!"}},"Yoga","Биркова Бэлла",7]
["2016-02-02",{"$f":"TEXT(ТЗанятияФитнесСтар[Дата занятия],\"ДДД\")","v":"Вт"},{"$f":"WEEKNUM(ТЗанятияФитнесСтар[[#This Row],[Дата занятия]],21)","v":5},"10:00:00","Зал 6",{"$f":"VLOOKUP(ТЗанятияФитнесСтар[Зал],#REF!,2,FALSE)","v":{"$error":"#REF!"}},"Body Workout","Янис Аболиньш",13]
["2016-02-02",{"$f":"TEXT(ТЗанятияФитнесСтар[Дата занятия],\"ДДД\")","v":"Вт"},{"$f":"WEEKNUM(ТЗанятияФитнесСтар[[#This Row],[Дата занятия]],21)","v":5},"18:00:00","Зал 4",{"$f":"VLOOKUP(ТЗанятияФитнесСтар[Зал],#REF!,2,FALSE)","v":{"$error":"#REF!"}},"Body Core+","Янис Аболиньш",12]
["2016-02-02",{"$f":"TEXT(ТЗанятияФитнесСтар[Дата занятия],\"ДДД\")","v":"Вт"},{"$f":"WEEKNUM(ТЗанятияФитнесСтар[[#This Row],[Дата занятия]],21)","v":5},"18:00:00","Зал 3",{"$f":"VLOOKUP(ТЗанятияФитнесСтар[Зал],#REF!,2,FALSE)","v":{"$error":"#REF!"}},"Strip dance","Хапонен Люся",5]
["2016-02-02",{"$f":"TEXT(ТЗанятияФитнесСтар[Дата занятия],\"ДДД\")","v":"Вт"},{"$f":"WEEKNUM(ТЗанятияФитнесСтар[[#This Row],[Дата занятия]],21)","v":5},"19:00:00","Зал 4",{"$f":"VLOOKUP(ТЗанятияФитнесСтар[Зал],#REF!,2,FALSE)","v":{"$error":"#REF!"}},"Functional.T","Мария Ловченко",14]
["2016-02-02",{"$f":"TEXT(ТЗанятияФитнесСтар[Дата занятия],\"ДДД\")","v":"Вт"},{"$f":"WEEKNUM(ТЗанятияФитнесСтар[[#This Row],[Дата занятия]],21)","v":5},"19:00:00","Зал 5",{"$f":"VLOOKUP(ТЗанятияФитнесСтар[Зал],#REF!,2,FALSE)","v":{"$error":"#REF!"}},"Бокс","Ионов Александр",10]
["2016-02-02",{"$f":"TEXT(ТЗанятияФитнесСтар[Дата занятия],\"ДДД\")","v":"Вт"},{"$f":"WEEKNUM(ТЗанятияФитнесСтар[[#This Row],[Дата занятия]],21)","v":5},"19:00:00","Зал 3",{"$f":"VLOOKUP(ТЗанятияФитнесСтар[Зал],#REF!,2,FALSE)","v":{"$error":"#REF!"}},"Social Dance","Фаик Шаабан",8]
["2016-02-02",{"$f":"TEXT(ТЗанятияФитнесСтар[Дата занятия],\"ДДД\")","v":"Вт"},{"$f":"WEEKNUM(ТЗанятияФитнесСтар[[#This Row],[Дата занятия]],21)","v":5},"19:00:00","Зал 6",{"$f":"VLOOKUP(ТЗанятияФитнесСтар[Зал],#REF!,2,FALSE)","v":{"$error":"#REF!"}},"Gravity","Янис Аболиньш",5]
["2016-02-02",{"$f":"TEXT(ТЗанятияФитнесСтар[Дата занятия],\"ДДД\")","v":"Вт"},{"$f":"WEEKNUM(ТЗанятияФитнесСтар[[#This Row],[Дата занятия]],21)","v":5},"20:00:00","Зал 4",{"$f":"VLOOKUP(ТЗанятияФитнесСтар[Зал],#REF!,2,FALSE)","v":{"$error":"#REF!"}},"Кавказские Танцы","Рамиз Апсалямов",2]
["2016-02-02",{"$f":"TEXT(ТЗанятияФитнесСтар[Дата занятия],\"ДДД\")","v":"Вт"},{"$f":"WEEKNUM(ТЗанятияФитнесСтар[[#This Row],[Дата занятия]],21)","v":5},"20:00:00","Зал 1",{"$f":"VLOOKUP(ТЗанятияФитнесСтар[Зал],#REF!,2,FALSE)","v":{"$error":"#REF!"}},"Aerial Yoga","Мария Ловченко",10]
["2016-02-02",{"$f":"TEXT(ТЗанятияФитнесСтар[Дата занятия],\"ДДД\")","v":"Вт"},{"$f":"WEEKNUM(ТЗанятияФитнесСтар[[#This Row],[Дата занятия]],21)","v":5},"20:00:00","Зал 5",{"$f":"VLOOKUP(ТЗанятияФитнесСтар[Зал],#REF!,2,FALSE)","v":{"$error":"#REF!"}},"MMA FightClub","Исаев Мамед",16]
["2016-02-02",{"$f":"TEXT(ТЗанятияФитнесСтар[Дата занятия],\"ДДД\")","v":"Вт"},{"$f":"WEEKNUM(ТЗанятияФитнесСтар[[#This Row],[Дата занятия]],21)","v":5},"20:00:00","Зал 3",{"$f":"VLOOKUP(ТЗанятияФитнесСтар[Зал],#REF!,2,FALSE)","v":{"$error":"#REF!"}},"Cycle","Рафаэль Гусейнов",8]
["2016-02-03",{"$f":"TEXT(ТЗанятияФитнесСтар[Дата занятия],\"ДДД\")","v":"Ср"},{"$f":"WEEKNUM(ТЗанятияФитнесСтар[[#This Row],[Дата занятия]],21)","v":5},"07:15:00","Зал 6",{"$f":"VLOOKUP(ТЗанятияФитнесСтар[Зал],#REF!,2,FALSE)","v":{"$error":"#REF!"}},"CrossFit","Исаев Мамед",6]
["2016-02-03",{"$f":"TEXT(ТЗанятияФитнесСтар[Дата занятия],\"ДДД\")","v":"Ср"},{"$f":"WEEKNUM(ТЗанятияФитнесСтар[[#This Row],[Дата занятия]],21)","v":5},"09:00:00","Зал 4",{"$f":"VLOOKUP(ТЗанятияФитнесСтар[Зал],#REF!,2,FALSE)","v":{"$error":"#REF!"}},"Body Core+","Янис Аболиньш",11]
["2016-02-03",{"$f":"TEXT(ТЗанятияФитнесСтар[Дата занятия],\"ДДД\")","v":"Ср"},{"$f":"WEEKNUM(ТЗанятияФитнесСтар[[#This Row],[Дата занятия]],21)","v":5},"10:00:00","Зал 4",{"$f":"VLOOKUP(ТЗанятияФитнесСтар[Зал],#REF!,2,FALSE)","v":{"$error":"#REF!"}},"Zumba","Швец-Машкара  Олеся",2]
["2016-02-03",{"$f":"TEXT(ТЗанятияФитнесСтар[Дата занятия],\"ДДД\")","v":"Ср"},{"$f":"WEEKNUM(ТЗанятияФитнесСтар[[#This Row],[Дата занятия]],21)","v":5},"17:00:00","Зал 4",{"$f":"VLOOKUP(ТЗанятияФитнесСтар[Зал],#REF!,2,FALSE)","v":{"$error":"#REF!"}},"Шейпинг-MIX","Светлана Сущкевич",13]
["2016-02-03",{"$f":"TEXT(ТЗанятияФитнесСтар[Дата занятия],\"ДДД\")","v":"Ср"},{"$f":"WEEKNUM(ТЗанятияФитнесСтар[[#This Row],[Дата занятия]],21)","v":5},"18:00:00","Зал 1",{"$f":"VLOOKUP(ТЗанятияФитнесСтар[Зал],#REF!,2,FALSE)","v":{"$error":"#REF!"}},"Pilates MAT","Мария Москаленко",2]
["2016-02-03",{"$f":"TEXT(ТЗанятияФитнесСтар[Дата занятия],\"ДДД\")","v":"Ср"},{"$f":"WEEKNUM(ТЗанятияФитнесСтар[[#This Row],[Дата занятия]],21)","v":5},"18:00:00","Зал 4",{"$f":"VLOOKUP(ТЗанятияФитнесСтар[Зал],#REF!,2,FALSE)","v":{"$error":"#REF!"}},"Combat","Янис Аболиньш",10]
["2016-02-03",{"$f":"TEXT(ТЗанятияФитнесСтар[Дата занятия],\"ДДД\")","v":"Ср"},{"$f":"WEEKNUM(ТЗанятияФитнесСтар[[#This Row],[Дата занятия]],21)","v":5},"19:00:00","Зал 4",{"$f":"VLOOKUP(ТЗанятияФитнесСтар[Зал],#REF!,2,FALSE)","v":{"$error":"#REF!"}},"Body Pamp","Янис Аболиньш",22]
["2016-02-03",{"$f":"TEXT(ТЗанятияФитнесСтар[Дата занятия],\"ДДД\")","v":"Ср"},{"$f":"WEEKNUM(ТЗанятияФитнесСтар[[#This Row],[Дата занятия]],21)","v":5},"19:00:00","Зал 1",{"$f":"VLOOKUP(ТЗанятияФитнесСтар[Зал],#REF!,2,FALSE)","v":{"$error":"#REF!"}},"Yoga-Lates","Мария Ловченко",20]
["2016-02-03",{"$f":"TEXT(ТЗанятияФитнесСтар[Дата занятия],\"ДДД\")","v":"Ср"},{"$f":"WEEKNUM(ТЗанятияФитнесСтар[[#This Row],[Дата занятия]],21)","v":5},"20:00:00","Зал 1",{"$f":"VLOOKUP(ТЗанятияФитнесСтар[Зал],#REF!,2,FALSE)","v":{"$error":"#REF!"}},"Yoga-Integr","Жане Заур",12]
["2016-02-03",{"$f":"TEXT(ТЗанятияФитнесСтар[Дата занятия],\"ДДД\")","v":"Ср"},{"$f":"WEEKNUM(ТЗанятияФитнесСтар[[#This Row],[Дата занятия]],21)","v":5},"20:00:00","Зал 6",{"$f":"VLOOKUP(ТЗанятияФитнесСтар[Зал],#REF!,2,FALSE)","v":{"$error":"#REF!"}},"CrossFit","Исаев Мамед",10]
["2016-02-03",{"$f":"TEXT(ТЗанятияФитнесСтар[Дата занятия],\"ДДД\")","v":"Ср"},{"$f":"WEEKNUM(ТЗанятияФитнесСтар[[#This Row],[Дата занятия]],21)","v":5},"20:00:00","Зал 4",{"$f":"VLOOKUP(ТЗанятияФитнесСтар[Зал],#REF!,2,FALSE)","v":{"$error":"#REF!"}},"Dance MIX","Мария Ловченко",12]
["2016-02-03",{"$f":"TEXT(ТЗанятияФитнесСтар[Дата занятия],\"ДДД\")","v":"Ср"},{"$f":"WEEKNUM(ТЗанятияФитнесСтар[[#This Row],[Дата занятия]],21)","v":5},"20:00:00","Зал 5",{"$f":"VLOOKUP(ТЗанятияФитнесСтар[Зал],#REF!,2,FALSE)","v":{"$error":"#REF!"}},"КикБоксинг","Омаров Магомед",16]
["2016-02-04",{"$f":"TEXT(ТЗанятияФитнесСтар[Дата занятия],\"ДДД\")","v":"Чт"},{"$f":"WEEKNUM(ТЗанятияФитнесСтар[[#This Row],[Дата занятия]],21)","v":5},"07:15:00","Зал 6",{"$f":"VLOOKUP(ТЗанятияФитнесСтар[Зал],#REF!,2,FALSE)","v":{"$error":"#REF!"}},"CrossFit","Исаев Мамед",10]
["2016-02-04",{"$f":"TEXT(ТЗанятияФитнесСтар[Дата занятия],\"ДДД\")","v":"Чт"},{"$f":"WEEKNUM(ТЗанятияФитнесСтар[[#This Row],[Дата занятия]],21)","v":5},"09:00:00","Зал 4",{"$f":"VLOOKUP(ТЗанятияФитнесСтар[Зал],#REF!,2,FALSE)","v":{"$error":"#REF!"}},"Yoga-Hatha","Биркова Бэлла",9]
["2016-02-04",{"$f":"TEXT(ТЗанятияФитнесСтар[Дата занятия],\"ДДД\")","v":"Чт"},{"$f":"WEEKNUM(ТЗанятияФитнесСтар[[#This Row],[Дата занятия]],21)","v":5},"10:00:00","Зал 4",{"$f":"VLOOKUP(ТЗанятияФитнесСтар[Зал],#REF!,2,FALSE)","v":{"$error":"#REF!"}},"Pilates","Вершинникова Люда",4]
["2016-02-04",{"$f":"TEXT(ТЗанятияФитнесСтар[Дата занятия],\"ДДД\")","v":"Чт"},{"$f":"WEEKNUM(ТЗанятияФитнесСтар[[#This Row],[Дата занятия]],21)","v":5},"12:00:00","Зал 6",{"$f":"VLOOKUP(ТЗанятияФитнесСтар[Зал],#REF!,2,FALSE)","v":{"$error":"#REF!"}},"Body Workout","Янис Аболиньш",8]
["2016-02-04",{"$f":"TEXT(ТЗанятияФитнесСтар[Дата занятия],\"ДДД\")","v":"Чт"},{"$f":"WEEKNUM(ТЗанятияФитнесСтар[[#This Row],[Дата занятия]],21)","v":5},"18:00:00","Зал 4",{"$f":"VLOOKUP(ТЗанятияФитнесСтар[Зал],#REF!,2,FALSE)","v":{"$error":"#REF!"}},"Body Core+","Янис Аболиньш",15]
["2016-02-04",{"$f":"TEXT(ТЗанятияФитнесСтар[Дата занятия],\"ДДД\")","v":"Чт"},{"$f":"WEEKNUM(ТЗанятияФитнесСтар[[#This Row],[Дата занятия]],21)","v":5},"18:00:00","Зал 1",{"$f":"VLOOKUP(ТЗанятияФитнесСтар[Зал],#REF!,2,FALSE)","v":{"$error":"#REF!"}},"Восточные танцы","Ершова дана",2]
["2016-02-04",{"$f":"TEXT(ТЗанятияФитнесСтар[Дата занятия],\"ДДД\")","v":"Чт"},{"$f":"WEEKNUM(ТЗанятияФитнесСтар[[#This Row],[Дата занятия]],21)","v":5},"19:00:00","Зал 1",{"$f":"VLOOKUP(ТЗанятияФитнесСтар[Зал],#REF!,2,FALSE)","v":{"$error":"#REF!"}},"Zumba","Швец-Машкара  Олеся",6]
["2016-02-04",{"$f":"TEXT(ТЗанятияФитнесСтар[Дата занятия],\"ДДД\")","v":"Чт"},{"$f":"WEEKNUM(ТЗанятияФитнесСтар[[#This Row],[Дата занятия]],21)","v":5},"19:00:00","Зал 3",{"$f":"VLOOKUP(ТЗанятияФитнесСтар[Зал],#REF!,2,FALSE)","v":{"$error":"#REF!"}},"Social Dance","Фаик Шаабан",7]
["2016-02-04",{"$f":"TEXT(ТЗанятияФитнесСтар[Дата занятия],\"ДДД\")","v":"Чт"},{"$f":"WEEKNUM(ТЗанятияФитнесСтар[[#This Row],[Дата занятия]],21)","v":5},"19:00:00","Зал 5",{"$f":"VLOOKUP(ТЗанятияФитнесСтар[Зал],#REF!,2,FALSE)","v":{"$error":"#REF!"}},"Бокс","Ионов Александр",6]
["2016-02-04",{"$f":"TEXT(ТЗанятияФитнесСтар[Дата занятия],\"ДДД\")","v":"Чт"},{"$f":"WEEKNUM(ТЗанятияФитнесСтар[[#This Row],[Дата занятия]],21)","v":5},"19:00:00","Зал 6",{"$f":"VLOOKUP(ТЗанятияФитнесСтар[Зал],#REF!,2,FALSE)","v":{"$error":"#REF!"}},"Gravity","Вершинникова Люда",6]
["2016-02-04",{"$f":"TEXT(ТЗанятияФитнесСтар[Дата занятия],\"ДДД\")","v":"Чт"},{"$f":"WEEKNUM(ТЗанятияФитнесСтар[[#This Row],[Дата занятия]],21)","v":5},"20:00:00","Зал 1",{"$f":"VLOOKUP(ТЗанятияФитнесСтар[Зал],#REF!,2,FALSE)","v":{"$error":"#REF!"}},"Social Dance","Фаик Шаабан",7]
["2016-02-04",{"$f":"TEXT(ТЗанятияФитнесСтар[Дата занятия],\"ДДД\")","v":"Чт"},{"$f":"WEEKNUM(ТЗанятияФитнесСтар[[#This Row],[Дата занятия]],21)","v":5},"20:00:00","Зал 3",{"$f":"VLOOKUP(ТЗанятияФитнесСтар[Зал],#REF!,2,FALSE)","v":{"$error":"#REF!"}},"Cycle","Рафаэль Гусейнов",9]
["2016-02-04",{"$f":"TEXT(ТЗанятияФитнесСтар[Дата занятия],\"ДДД\")","v":"Чт"},{"$f":"WEEKNUM(ТЗанятияФитнесСтар[[#This Row],[Дата занятия]],21)","v":5},"20:00:00","Зал 5",{"$f":"VLOOKUP(ТЗанятияФитнесСтар[Зал],#REF!,2,FALSE)","v":{"$error":"#REF!"}},"MMA FightClub","Исаев Мамед",16]
["2016-02-05",{"$f":"TEXT(ТЗанятияФитнесСтар[Дата занятия],\"ДДД\")","v":"Пт"},{"$f":"WEEKNUM(ТЗанятияФитнесСтар[[#This Row],[Дата занятия]],21)","v":5},"09:00:00","Зал 3",{"$f":"VLOOKUP(ТЗанятияФитнесСтар[Зал],#REF!,2,FALSE)","v":{"$error":"#REF!"}},"Cycle","Игнатченко  Анна",10]
["2016-02-05",{"$f":"TEXT(ТЗанятияФитнесСтар[Дата занятия],\"ДДД\")","v":"Пт"},{"$f":"WEEKNUM(ТЗанятияФитнесСтар[[#This Row],[Дата занятия]],21)","v":5},"10:00:00","Зал 4",{"$f":"VLOOKUP(ТЗанятияФитнесСтар[Зал],#REF!,2,FALSE)","v":{"$error":"#REF!"}},"Body Pamp","Янис Аболиньш",18]
["2016-02-05",{"$f":"TEXT(ТЗанятияФитнесСтар[Дата занятия],\"ДДД\")","v":"Пт"},{"$f":"WEEKNUM(ТЗанятияФитнесСтар[[#This Row],[Дата занятия]],21)","v":5},"11:00:00","Зал 4",{"$f":"VLOOKUP(ТЗанятияФитнесСтар[Зал],#REF!,2,FALSE)","v":{"$error":"#REF!"}},"Stretch","Вершинникова Люда",8]
["2016-02-05",{"$f":"TEXT(ТЗанятияФитнесСтар[Дата занятия],\"ДДД\")","v":"Пт"},{"$f":"WEEKNUM(ТЗанятияФитнесСтар[[#This Row],[Дата занятия]],21)","v":5},"17:00:00","Зал 4",{"$f":"VLOOKUP(ТЗанятияФитнесСтар[Зал],#REF!,2,FALSE)","v":{"$error":"#REF!"}},"Шейпинг-MIX","Светлана Сущкевич",12]
["2016-02-05",{"$f":"TEXT(ТЗанятияФитнесСтар[Дата занятия],\"ДДД\")","v":"Пт"},{"$f":"WEEKNUM(ТЗанятияФитнесСтар[[#This Row],[Дата занятия]],21)","v":5},"18:00:00","Зал 1",{"$f":"VLOOKUP(ТЗанятияФитнесСтар[Зал],#REF!,2,FALSE)","v":{"$error":"#REF!"}},"Pilates","Мария Москаленко",13]
["2016-02-05",{"$f":"TEXT(ТЗанятияФитнесСтар[Дата занятия],\"ДДД\")","v":"Пт"},{"$f":"WEEKNUM(ТЗанятияФитнесСтар[[#This Row],[Дата занятия]],21)","v":5},"18:00:00","Зал 3",{"$f":"VLOOKUP(ТЗанятияФитнесСтар[Зал],#REF!,2,FALSE)","v":{"$error":"#REF!"}},"Cycle","Рафаэль Гусейнов",0]
["2016-02-05",{"$f":"TEXT(ТЗанятияФитнесСтар[Дата занятия],\"ДДД\")","v":"Пт"},{"$f":"WEEKNUM(ТЗанятияФитнесСтар[[#This Row],[Дата занятия]],21)","v":5},"19:00:00","Зал 1",{"$f":"VLOOKUP(ТЗанятияФитнесСтар[Зал],#REF!,2,FALSE)","v":{"$error":"#REF!"}},"Step","Мария Москаленко",5]
["2016-02-05",{"$f":"TEXT(ТЗанятияФитнесСтар[Дата занятия],\"ДДД\")","v":"Пт"},{"$f":"WEEKNUM(ТЗанятияФитнесСтар[[#This Row],[Дата занятия]],21)","v":5},"19:00:00","Зал 4",{"$f":"VLOOKUP(ТЗанятияФитнесСтар[Зал],#REF!,2,FALSE)","v":{"$error":"#REF!"}},"Yoga-Miofasc","Мария Ловченко",23]
["2016-02-05",{"$f":"TEXT(ТЗанятияФитнесСтар[Дата занятия],\"ДДД\")","v":"Пт"},{"$f":"WEEKNUM(ТЗанятияФитнесСтар[[#This Row],[Дата занятия]],21)","v":5},"19:00:00","Зал 6",{"$f":"VLOOKUP(ТЗанятияФитнесСтар[Зал],#REF!,2,FALSE)","v":{"$error":"#REF!"}},"CrossFit","Исаев Мамед",7]
["2016-02-05",{"$f":"TEXT(ТЗанятияФитнесСтар[Дата занятия],\"ДДД\")","v":"Пт"},{"$f":"WEEKNUM(ТЗанятияФитнесСтар[[#This Row],[Дата занятия]],21)","v":5},"20:00:00","Зал 5",{"$f":"VLOOKUP(ТЗанятияФитнесСтар[Зал],#REF!,2,FALSE)","v":{"$error":"#REF!"}},"Grappling","Исаев Мамед",16]
["2016-02-06",{"$f":"TEXT(ТЗанятияФитнесСтар[Дата занятия],\"ДДД\")","v":"Сб"},{"$f":"WEEKNUM(ТЗанятияФитнесСтар[[#This Row],[Дата занятия]],21)","v":5},"09:00:00","Зал 1",{"$f":"VLOOKUP(ТЗанятияФитнесСтар[Зал],#REF!,2,FALSE)","v":{"$error":"#REF!"}},"Восточные танцы","Ершова дана",2]
["2016-02-06",{"$f":"TEXT(ТЗанятияФитнесСтар[Дата занятия],\"ДДД\")","v":"Сб"},{"$f":"WEEKNUM(ТЗанятияФитнесСтар[[#This Row],[Дата занятия]],21)","v":5},"10:00:00","Доп.Зал",{"$f":"VLOOKUP(ТЗанятияФитнесСтар[Зал],#REF!,2,FALSE)","v":{"$error":"#REF!"}},"Tracking","Мария Москаленко",10]
["2016-02-06",{"$f":"TEXT(ТЗанятияФитнесСтар[Дата занятия],\"ДДД\")","v":"Сб"},{"$f":"WEEKNUM(ТЗанятияФитнесСтар[[#This Row],[Дата занятия]],21)","v":5},"11:00:00","Зал 6",{"$f":"VLOOKUP(ТЗанятияФитнесСтар[Зал],#REF!,2,FALSE)","v":{"$error":"#REF!"}},"Body Workout","Янис Аболиньш",18]
["2016-02-06",{"$f":"TEXT(ТЗанятияФитнесСтар[Дата занятия],\"ДДД\")","v":"Сб"},{"$f":"WEEKNUM(ТЗанятияФитнесСтар[[#This Row],[Дата занятия]],21)","v":5},"12:00:00","Зал 1",{"$f":"VLOOKUP(ТЗанятияФитнесСтар[Зал],#REF!,2,FALSE)","v":{"$error":"#REF!"}},"Zumba-Toning +","Даша Пищальникова",16]
["2016-02-06",{"$f":"TEXT(ТЗанятияФитнесСтар[Дата занятия],\"ДДД\")","v":"Сб"},{"$f":"WEEKNUM(ТЗанятияФитнесСтар[[#This Row],[Дата занятия]],21)","v":5},"14:00:00","Зал 4",{"$f":"VLOOKUP(ТЗанятияФитнесСтар[Зал],#REF!,2,FALSE)","v":{"$error":"#REF!"}},"Кавказские Танцы","Рамиз Апсалямов",1]
["2016-02-06",{"$f":"TEXT(ТЗанятияФитнесСтар[Дата занятия],\"ДДД\")","v":"Сб"},{"$f":"WEEKNUM(ТЗанятияФитнесСтар[[#This Row],[Дата занятия]],21)","v":5},"15:00:00","Зал 4",{"$f":"VLOOKUP(ТЗанятияФитнесСтар[Зал],#REF!,2,FALSE)","v":{"$error":"#REF!"}},"Пор де Бра","Хапонен Люся",2]
["2016-02-06",{"$f":"TEXT(ТЗанятияФитнесСтар[Дата занятия],\"ДДД\")","v":"Сб"},{"$f":"WEEKNUM(ТЗанятияФитнесСтар[[#This Row],[Дата занятия]],21)","v":5},"16:00:00","Зал 3",{"$f":"VLOOKUP(ТЗанятияФитнесСтар[Зал],#REF!,2,FALSE)","v":{"$error":"#REF!"}},"Strip dance","Хапонен Люся",6]
["2016-02-06",{"$f":"TEXT(ТЗанятияФитнесСтар[Дата занятия],\"ДДД\")","v":"Сб"},{"$f":"WEEKNUM(ТЗанятияФитнесСтар[[#This Row],[Дата занятия]],21)","v":5},"17:00:00","Зал 4",{"$f":"VLOOKUP(ТЗанятияФитнесСтар[Зал],#REF!,2,FALSE)","v":{"$error":"#REF!"}},"Social Dance","Фаик Шаабан",6]
["2016-02-06",{"$f":"TEXT(ТЗанятияФитнесСтар[Дата занятия],\"ДДД\")","v":"Сб"},{"$f":"WEEKNUM(ТЗанятияФитнесСтар[[#This Row],[Дата занятия]],21)","v":5},"18:00:00","Зал 4",{"$f":"VLOOKUP(ТЗанятияФитнесСтар[Зал],#REF!,2,FALSE)","v":{"$error":"#REF!"}},"Social Dance","Фаик Шаабан",6]
["2016-02-06",{"$f":"TEXT(ТЗанятияФитнесСтар[Дата занятия],\"ДДД\")","v":"Сб"},{"$f":"WEEKNUM(ТЗанятияФитнесСтар[[#This Row],[Дата занятия]],21)","v":5},"20:00:00","Зал 5",{"$f":"VLOOKUP(ТЗанятияФитнесСтар[Зал],#REF!,2,FALSE)","v":{"$error":"#REF!"}},"КикБоксинг","Омаров Магомед",16]
["2016-02-07",{"$f":"TEXT(ТЗанятияФитнесСтар[Дата занятия],\"ДДД\")","v":"Вс"},{"$f":"WEEKNUM(ТЗанятияФитнесСтар[[#This Row],[Дата занятия]],21)","v":5},"11:00:00","Зал 4",{"$f":"VLOOKUP(ТЗанятияФитнесСтар[Зал],#REF!,2,FALSE)","v":{"$error":"#REF!"}},"Step","Мария Москаленко",6]
["2016-02-07",{"$f":"TEXT(ТЗанятияФитнесСтар[Дата занятия],\"ДДД\")","v":"Вс"},{"$f":"WEEKNUM(ТЗанятияФитнесСтар[[#This Row],[Дата занятия]],21)","v":5},"12:00:00","Зал 4",{"$f":"VLOOKUP(ТЗанятияФитнесСтар[Зал],#REF!,2,FALSE)","v":{"$error":"#REF!"}},"Pilates","Мария Москаленко",8]
["2016-02-07",{"$f":"TEXT(ТЗанятияФитнесСтар[Дата занятия],\"ДДД\")","v":"Вс"},{"$f":"WEEKNUM(ТЗанятияФитнесСтар[[#This Row],[Дата занятия]],21)","v":5},"14:00:00","Зал 4",{"$f":"VLOOKUP(ТЗанятияФитнесСтар[Зал],#REF!,2,FALSE)","v":{"$error":"#REF!"}},"Бокс","Ионов Александр",5]
["2016-02-07",{"$f":"TEXT(ТЗанятияФитнесСтар[Дата занятия],\"ДДД\")","v":"Вс"},{"$f":"WEEKNUM(ТЗанятияФитнесСтар[[#This Row],[Дата занятия]],21)","v":5},"17:00:00","Зал 4",{"$f":"VLOOKUP(ТЗанятияФитнесСтар[Зал],#REF!,2,FALSE)","v":{"$error":"#REF!"}},"Body Pamp","Янис Аболиньш",15]
["2016-02-07",{"$f":"TEXT(ТЗанятияФитнесСтар[Дата занятия],\"ДДД\")","v":"Вс"},{"$f":"WEEKNUM(ТЗанятияФитнесСтар[[#This Row],[Дата занятия]],21)","v":5},"18:00:00","Зал 4",{"$f":"VLOOKUP(ТЗанятияФитнесСтар[Зал],#REF!,2,FALSE)","v":{"$error":"#REF!"}},"Stretch","Янис Аболиньш",16]
[null,{"$f":"TEXT(ТЗанятияФитнесСтар[Дата занятия],\"ДДД\")","v":"Сб"},{"$f":"WEEKNUM(ТЗанятияФитнесСтар[[#This Row],[Дата занятия]],21)","v":52},null,null,{"$f":"VLOOKUP(ТЗанятияФитнесСтар[Зал],#REF!,2,FALSE)","v":{"$error":"#REF!"}}]
[null,{"$f":"TEXT(ТЗанятияФитнесСтар[Дата занятия],\"ДДД\")","v":"Сб"},{"$f":"WEEKNUM(ТЗанятияФитнесСтар[[#This Row],[Дата занятия]],21)","v":52},null,null,{"$f":"VLOOKUP(ТЗанятияФитнесСтар[Зал],#REF!,2,FALSE)","v":{"$error":"#REF!"}}]
[null,{"$f":"TEXT(ТЗанятияФитнесСтар[Дата занятия],\"ДДД\")","v":"Сб"},{"$f":"WEEKNUM(ТЗанятияФитнесСтар[[#This Row],[Дата занятия]],21)","v":52},null,null,{"$f":"VLOOKUP(ТЗанятияФитнесСтар[Зал],#REF!,2,FALSE)","v":{"$error":"#REF!"}}]
[null,{"$f":"TEXT(ТЗанятияФитнесСтар[Дата занятия],\"ДДД\")","v":"Сб"},{"$f":"WEEKNUM(ТЗанятияФитнесСтар[[#This Row],[Дата занятия]],21)","v":52},null,null,{"$f":"VLOOKUP(ТЗанятияФитнесСтар[Зал],#REF!,2,FALSE)","v":{"$error":"#REF!"}}]
[null,{"$f":"TEXT(ТЗанятияФитнесСтар[Дата занятия],\"ДДД\")","v":"Сб"},{"$f":"WEEKNUM(ТЗанятияФитнесСтар[[#This Row],[Дата занятия]],21)","v":52},null,null,{"$f":"VLOOKUP(ТЗанятияФитнесСтар[Зал],#REF!,2,FALSE)","v":{"$error":"#REF!"}}]
[null,{"$f":"TEXT(ТЗанятияФитнесСтар[Дата занятия],\"ДДД\")","v":"Сб"},{"$f":"WEEKNUM(ТЗанятияФитнесСтар[[#This Row],[Дата занятия]],21)","v":52},null,null,{"$f":"VLOOKUP(ТЗанятияФитнесСтар[Зал],#REF!,2,FALSE)","v":{"$error":"#REF!"}}]
[null,{"$f":"TEXT(ТЗанятияФитнесСтар[Дата занятия],\"ДДД\")","v":"Сб"},{"$f":"WEEKNUM(ТЗанятияФитнесСтар[[#This Row],[Дата занятия]],21)","v":52},null,null,{"$f":"VLOOKUP(ТЗанятияФитнесСтар[Зал],#REF!,2,FALSE)","v":{"$error":"#REF!"}}]
[null,{"$f":"TEXT(ТЗанятияФитнесСтар[Дата занятия],\"ДДД\")","v":"Сб"},{"$f":"WEEKNUM(ТЗанятияФитнесСтар[[#This Row],[Дата занятия]],21)","v":52},null,null,{"$f":"VLOOKUP(ТЗанятияФитнесСтар[Зал],#REF!,2,FALSE)","v":{"$error":"#REF!"}}]
[null,{"$f":"TEXT(ТЗанятияФитнесСтар[Дата занятия],\"ДДД\")","v":"Сб"},{"$f":"WEEKNUM(ТЗанятияФитнесСтар[[#This Row],[Дата занятия]],21)","v":52},null,null,{"$f":"VLOOKUP(ТЗанятияФитнесСтар[Зал],#REF!,2,FALSE)","v":{"$error":"#REF!"}}]
[null,{"$f":"TEXT(ТЗанятияФитнесСтар[Дата занятия],\"ДДД\")","v":"Сб"},{"$f":"WEEKNUM(ТЗанятияФитнесСтар[[#This Row],[Дата занятия]],21)","v":52},null,null,{"$f":"VLOOKUP(ТЗанятияФитнесСтар[Зал],#REF!,2,FALSE)","v":{"$error":"#REF!"}}]
[null,{"$f":"TEXT(ТЗанятияФитнесСтар[Дата занятия],\"ДДД\")","v":"Сб"},{"$f":"WEEKNUM(ТЗанятияФитнесСтар[[#This Row],[Дата занятия]],21)","v":52},null,null,{"$f":"VLOOKUP(ТЗанятияФитнесСтар[Зал],#REF!,2,FALSE)","v":{"$error":"#REF!"}}]
[null,{"$f":"TEXT(ТЗанятияФитнесСтар[Дата занятия],\"ДДД\")","v":"Сб"},{"$f":"WEEKNUM(ТЗанятияФитнесСтар[[#This Row],[Дата занятия]],21)","v":52},null,null,{"$f":"VLOOKUP(ТЗанятияФитнесСтар[Зал],#REF!,2,FALSE)","v":{"$error":"#REF!"}}]
[null,{"$f":"TEXT(ТЗанятияФитнесСтар[Дата занятия],\"ДДД\")","v":"Сб"},{"$f":"WEEKNUM(ТЗанятияФитнесСтар[[#This Row],[Дата занятия]],21)","v":52},null,null,{"$f":"VLOOKUP(ТЗанятияФитнесСтар[Зал],#REF!,2,FALSE)","v":{"$error":"#REF!"}}]
[null,{"$f":"TEXT(ТЗанятияФитнесСтар[Дата занятия],\"ДДД\")","v":"Сб"},{"$f":"WEEKNUM(ТЗанятияФитнесСтар[[#This Row],[Дата занятия]],21)","v":52},null,null,{"$f":"VLOOKUP(ТЗанятияФитнесСтар[Зал],#REF!,2,FALSE)","v":{"$error":"#REF!"}}]
[null,{"$f":"TEXT(ТЗанятияФитнесСтар[Дата занятия],\"ДДД\")","v":"Сб"},{"$f":"WEEKNUM(ТЗанятияФитнесСтар[[#This Row],[Дата занятия]],21)","v":52},null,null,{"$f":"VLOOKUP(ТЗанятияФитнесСтар[Зал],#REF!,2,FALSE)","v":{"$error":"#REF!"}}]
[null,{"$f":"TEXT(ТЗанятияФитнесСтар[Дата занятия],\"ДДД\")","v":"Сб"},{"$f":"WEEKNUM(ТЗанятияФитнесСтар[[#This Row],[Дата занятия]],21)","v":52},null,null,{"$f":"VLOOKUP(ТЗанятияФитнесСтар[Зал],#REF!,2,FALSE)","v":{"$error":"#REF!"}}]
[null,{"$f":"TEXT(ТЗанятияФитнесСтар[Дата занятия],\"ДДД\")","v":"Сб"},{"$f":"WEEKNUM(ТЗанятияФитнесСтар[[#This Row],[Дата занятия]],21)","v":52},null,null,{"$f":"VLOOKUP(ТЗанятияФитнесСтар[Зал],#REF!,2,FALSE)","v":{"$error":"#REF!"}}]
[null,{"$f":"TEXT(ТЗанятияФитнесСтар[Дата занятия],\"ДДД\")","v":"Сб"},{"$f":"WEEKNUM(ТЗанятияФитнесСтар[[#This Row],[Дата занятия]],21)","v":52},null,null,{"$f":"VLOOKUP(ТЗанятияФитнесСтар[Зал],#REF!,2,FALSE)","v":{"$error":"#REF!"}}]
[null,{"$f":"TEXT(ТЗанятияФитнесСтар[Дата занятия],\"ДДД\")","v":"Сб"},{"$f":"WEEKNUM(ТЗанятияФитнесСтар[[#This Row],[Дата занятия]],21)","v":52},null,null,{"$f":"VLOOKUP(ТЗанятияФитнесСтар[Зал],#REF!,2,FALSE)","v":{"$error":"#REF!"}}]
[null,{"$f":"TEXT(ТЗанятияФитнесСтар[Дата занятия],\"ДДД\")","v":"Сб"},{"$f":"WEEKNUM(ТЗанятияФитнесСтар[[#This Row],[Дата занятия]],21)","v":52},null,null,{"$f":"VLOOKUP(ТЗанятияФитнесСтар[Зал],#REF!,2,FALSE)","v":{"$error":"#REF!"}}]
[null,{"$f":"TEXT(ТЗанятияФитнесСтар[Дата занятия],\"ДДД\")","v":"Сб"},{"$f":"WEEKNUM(ТЗанятияФитнесСтар[[#This Row],[Дата занятия]],21)","v":52},null,null,{"$f":"VLOOKUP(ТЗанятияФитнесСтар[Зал],#REF!,2,FALSE)","v":{"$error":"#REF!"}}]
[null,{"$f":"TEXT(ТЗанятияФитнесСтар[Дата занятия],\"ДДД\")","v":"Сб"},{"$f":"WEEKNUM(ТЗанятияФитнесСтар[[#This Row],[Дата занятия]],21)","v":52},null,null,{"$f":"VLOOKUP(ТЗанятияФитнесСтар[Зал],#REF!,2,FALSE)","v":{"$error":"#REF!"}}]
[null,{"$f":"TEXT(ТЗанятияФитнесСтар[Дата занятия],\"ДДД\")","v":"Сб"},{"$f":"WEEKNUM(ТЗанятияФитнесСтар[[#This Row],[Дата занятия]],21)","v":52},null,null,{"$f":"VLOOKUP(ТЗанятияФитнесСтар[Зал],#REF!,2,FALSE)","v":{"$error":"#REF!"}}]
[null,{"$f":"TEXT(ТЗанятияФитнесСтар[Дата занятия],\"ДДД\")","v":"Сб"},{"$f":"WEEKNUM(ТЗанятияФитнесСтар[[#This Row],[Дата занятия]],21)","v":52},null,null,{"$f":"VLOOKUP(ТЗанятияФитнесСтар[Зал],#REF!,2,FALSE)","v":{"$error":"#REF!"}}]
[null,{"$f":"TEXT(ТЗанятияФитнесСтар[Дата занятия],\"ДДД\")","v":"Сб"},{"$f":"WEEKNUM(ТЗанятияФитнесСтар[[#This Row],[Дата занятия]],21)","v":52},null,null,{"$f":"VLOOKUP(ТЗанятияФитнесСтар[Зал],#REF!,2,FALSE)","v":{"$error":"#REF!"}}]
[null,{"$f":"TEXT(ТЗанятияФитнесСтар[Дата занятия],\"ДДД\")","v":"Сб"},{"$f":"WEEKNUM(ТЗанятияФитнесСтар[[#This Row],[Дата занятия]],21)","v":52},null,null,{"$f":"VLOOKUP(ТЗанятияФитнесСтар[Зал],#REF!,2,FALSE)","v":{"$error":"#REF!"}}]
[null,{"$f":"TEXT(ТЗанятияФитнесСтар[Дата занятия],\"ДДД\")","v":"Сб"},{"$f":"WEEKNUM(ТЗанятияФитнесСтар[[#This Row],[Дата занятия]],21)","v":52},null,null,{"$f":"VLOOKUP(ТЗанятияФитнесСтар[Зал],#REF!,2,FALSE)","v":{"$error":"#REF!"}}]
[null,{"$f":"TEXT(ТЗанятияФитнесСтар[Дата занятия],\"ДДД\")","v":"Сб"},{"$f":"WEEKNUM(ТЗанятияФитнесСтар[[#This Row],[Дата занятия]],21)","v":52},null,null,{"$f":"VLOOKUP(ТЗанятияФитнесСтар[Зал],#REF!,2,FALSE)","v":{"$error":"#REF!"}}]
[null,{"$f":"TEXT(ТЗанятияФитнесСтар[Дата занятия],\"ДДД\")","v":"Сб"},{"$f":"WEEKNUM(ТЗанятияФитнесСтар[[#This Row],[Дата занятия]],21)","v":52},null,null,{"$f":"VLOOKUP(ТЗанятияФитнесСтар[Зал],#REF!,2,FALSE)","v":{"$error":"#REF!"}}]
[null,{"$f":"TEXT(ТЗанятияФитнесСтар[Дата занятия],\"ДДД\")","v":"Сб"},{"$f":"WEEKNUM(ТЗанятияФитнесСтар[[#This Row],[Дата занятия]],21)","v":52},null,null,{"$f":"VLOOKUP(ТЗанятияФитнесСтар[Зал],#REF!,2,FALSE)","v":{"$error":"#REF!"}}]
[null,{"$f":"TEXT(ТЗанятияФитнесСтар[Дата занятия],\"ДДД\")","v":"Сб"},{"$f":"WEEKNUM(ТЗанятияФитнесСтар[[#This Row],[Дата занятия]],21)","v":52},null,null,{"$f":"VLOOKUP(ТЗанятияФитнесСтар[Зал],#REF!,2,FALSE)","v":{"$error":"#REF!"}}]
[null,{"$f":"TEXT(ТЗанятияФитнесСтар[Дата занятия],\"ДДД\")","v":"Сб"},{"$f":"WEEKNUM(ТЗанятияФитнесСтар[[#This Row],[Дата занятия]],21)","v":52},null,null,{"$f":"VLOOKUP(ТЗанятияФитнесСтар[Зал],#REF!,2,FALSE)","v":{"$error":"#REF!"}}]
[null,{"$f":"TEXT(ТЗанятияФитнесСтар[Дата занятия],\"ДДД\")","v":"Сб"},{"$f":"WEEKNUM(ТЗанятияФитнесСтар[[#This Row],[Дата занятия]],21)","v":52},null,null,{"$f":"VLOOKUP(ТЗанятияФитнесСтар[Зал],#REF!,2,FALSE)","v":{"$error":"#REF!"}}]
[null,{"$f":"TEXT(ТЗанятияФитнесСтар[Дата занятия],\"ДДД\")","v":"Сб"},{"$f":"WEEKNUM(ТЗанятияФитнесСтар[[#This Row],[Дата занятия]],21)","v":52},null,null,{"$f":"VLOOKUP(ТЗанятияФитнесСтар[Зал],#REF!,2,FALSE)","v":{"$error":"#REF!"}}]
[null,{"$f":"TEXT(ТЗанятияФитнесСтар[Дата занятия],\"ДДД\")","v":"Сб"},{"$f":"WEEKNUM(ТЗанятияФитнесСтар[[#This Row],[Дата занятия]],21)","v":52},null,null,{"$f":"VLOOKUP(ТЗанятияФитнесСтар[Зал],#REF!,2,FALSE)","v":{"$error":"#REF!"}}]
[null,{"$f":"TEXT(ТЗанятияФитнесСтар[Дата занятия],\"ДДД\")","v":"Сб"},{"$f":"WEEKNUM(ТЗанятияФитнесСтар[[#This Row],[Дата занятия]],21)","v":52},null,null,{"$f":"VLOOKUP(ТЗанятияФитнесСтар[Зал],#REF!,2,FALSE)","v":{"$error":"#REF!"}}]
[null,{"$f":"TEXT(ТЗанятияФитнесСтар[Дата занятия],\"ДДД\")","v":"Сб"},{"$f":"WEEKNUM(ТЗанятияФитнесСтар[[#This Row],[Дата занятия]],21)","v":52},null,null,{"$f":"VLOOKUP(ТЗанятияФитнесСтар[Зал],#REF!,2,FALSE)","v":{"$error":"#REF!"}}]
[null,{"$f":"TEXT(ТЗанятияФитнесСтар[Дата занятия],\"ДДД\")","v":"Сб"},{"$f":"WEEKNUM(ТЗанятияФитнесСтар[[#This Row],[Дата занятия]],21)","v":52},null,null,{"$f":"VLOOKUP(ТЗанятияФитнесСтар[Зал],#REF!,2,FALSE)","v":{"$error":"#REF!"}}]
[null,{"$f":"TEXT(ТЗанятияФитнесСтар[Дата занятия],\"ДДД\")","v":"Сб"},{"$f":"WEEKNUM(ТЗанятияФитнесСтар[[#This Row],[Дата занятия]],21)","v":52},null,null,{"$f":"VLOOKUP(ТЗанятияФитнесСтар[Зал],#REF!,2,FALSE)","v":{"$error":"#REF!"}}]
[null,{"$f":"TEXT(ТЗанятияФитнесСтар[Дата занятия],\"ДДД\")","v":"Сб"},{"$f":"WEEKNUM(ТЗанятияФитнесСтар[[#This Row],[Дата занятия]],21)","v":52},null,null,{"$f":"VLOOKUP(ТЗанятияФитнесСтар[Зал],#REF!,2,FALSE)","v":{"$error":"#REF!"}}]
[null,{"$f":"TEXT(ТЗанятияФитнесСтар[Дата занятия],\"ДДД\")","v":"Сб"},{"$f":"WEEKNUM(ТЗанятияФитнесСтар[[#This Row],[Дата занятия]],21)","v":52},null,null,{"$f":"VLOOKUP(ТЗанятияФитнесСтар[Зал],#REF!,2,FALSE)","v":{"$error":"#REF!"}}]
[null,{"$f":"TEXT(ТЗанятияФитнесСтар[Дата занятия],\"ДДД\")","v":"Сб"},{"$f":"WEEKNUM(ТЗанятияФитнесСтар[[#This Row],[Дата занятия]],21)","v":52},null,null,{"$f":"VLOOKUP(ТЗанятияФитнесСтар[Зал],#REF!,2,FALSE)","v":{"$error":"#REF!"}}]
[null,{"$f":"TEXT(ТЗанятияФитнесСтар[Дата занятия],\"ДДД\")","v":"Сб"},{"$f":"WEEKNUM(ТЗанятияФитнесСтар[[#This Row],[Дата занятия]],21)","v":52},null,null,{"$f":"VLOOKUP(ТЗанятияФитнесСтар[Зал],#REF!,2,FALSE)","v":{"$error":"#REF!"}}]
[null,{"$f":"TEXT(ТЗанятияФитнесСтар[Дата занятия],\"ДДД\")","v":"Сб"},{"$f":"WEEKNUM(ТЗанятияФитнесСтар[[#This Row],[Дата занятия]],21)","v":52},null,null,{"$f":"VLOOKUP(ТЗанятияФитнесСтар[Зал],#REF!,2,FALSE)","v":{"$error":"#REF!"}}]
[null,{"$f":"TEXT(ТЗанятияФитнесСтар[Дата занятия],\"ДДД\")","v":"Сб"},{"$f":"WEEKNUM(ТЗанятияФитнесСтар[[#This Row],[Дата занятия]],21)","v":52},null,null,{"$f":"VLOOKUP(ТЗанятияФитнесСтар[Зал],#REF!,2,FALSE)","v":{"$error":"#REF!"}}]
[null,{"$f":"TEXT(ТЗанятияФитнесСтар[Дата занятия],\"ДДД\")","v":"Сб"},{"$f":"WEEKNUM(ТЗанятияФитнесСтар[[#This Row],[Дата занятия]],21)","v":52},null,null,{"$f":"VLOOKUP(ТЗанятияФитнесСтар[Зал],#REF!,2,FALSE)","v":{"$error":"#REF!"}}]
[null,{"$f":"TEXT(ТЗанятияФитнесСтар[Дата занятия],\"ДДД\")","v":"Сб"},{"$f":"WEEKNUM(ТЗанятияФитнесСтар[[#This Row],[Дата занятия]],21)","v":52},null,null,{"$f":"VLOOKUP(ТЗанятияФитнесСтар[Зал],#REF!,2,FALSE)","v":{"$error":"#REF!"}}]
[null,{"$f":"TEXT(ТЗанятияФитнесСтар[Дата занятия],\"ДДД\")","v":"Сб"},{"$f":"WEEKNUM(ТЗанятияФитнесСтар[[#This Row],[Дата занятия]],21)","v":52},null,null,{"$f":"VLOOKUP(ТЗанятияФитнесСтар[Зал],#REF!,2,FALSE)","v":{"$error":"#REF!"}}]
[null,{"$f":"TEXT(ТЗанятияФитнесСтар[Дата занятия],\"ДДД\")","v":"Сб"},{"$f":"WEEKNUM(ТЗанятияФитнесСтар[[#This Row],[Дата занятия]],21)","v":52},null,null,{"$f":"VLOOKUP(ТЗанятияФитнесСтар[Зал],#REF!,2,FALSE)","v":{"$error":"#REF!"}}]
[null,{"$f":"TEXT(ТЗанятияФитнесСтар[Дата занятия],\"ДДД\")","v":"Сб"},{"$f":"WEEKNUM(ТЗанятияФитнесСтар[[#This Row],[Дата занятия]],21)","v":52},null,null,{"$f":"VLOOKUP(ТЗанятияФитнесСтар[Зал],#REF!,2,FALSE)","v":{"$error":"#REF!"}}]
[null,{"$f":"TEXT(ТЗанятияФитнесСтар[Дата занятия],\"ДДД\")","v":"Сб"},{"$f":"WEEKNUM(ТЗанятияФитнесСтар[[#This Row],[Дата занятия]],21)","v":52},null,null,{"$f":"VLOOKUP(ТЗанятияФитнесСтар[Зал],#REF!,2,FALSE)","v":{"$error":"#REF!"}}]
[null,{"$f":"TEXT(ТЗанятияФитнесСтар[Дата занятия],\"ДДД\")","v":"Сб"},{"$f":"WEEKNUM(ТЗанятияФитнесСтар[[#This Row],[Дата занятия]],21)","v":52},null,null,{"$f":"VLOOKUP(ТЗанятияФитнесСтар[Зал],#REF!,2,FALSE)","v":{"$error":"#REF!"}}]
[null,{"$f":"TEXT(ТЗанятияФитнесСтар[Дата занятия],\"ДДД\")","v":"Сб"},{"$f":"WEEKNUM(ТЗанятияФитнесСтар[[#This Row],[Дата занятия]],21)","v":52},null,null,{"$f":"VLOOKUP(ТЗанятияФитнесСтар[Зал],#REF!,2,FALSE)","v":{"$error":"#REF!"}}]
[null,{"$f":"TEXT(ТЗанятияФитнесСтар[Дата занятия],\"ДДД\")","v":"Сб"},{"$f":"WEEKNUM(ТЗанятияФитнесСтар[[#This Row],[Дата занятия]],21)","v":52},null,null,{"$f":"VLOOKUP(ТЗанятияФитнесСтар[Зал],#REF!,2,FALSE)","v":{"$error":"#REF!"}}]
[null,{"$f":"TEXT(ТЗанятияФитнесСтар[Дата занятия],\"ДДД\")","v":"Сб"},{"$f":"WEEKNUM(ТЗанятияФитнесСтар[[#This Row],[Дата занятия]],21)","v":52},null,null,{"$f":"VLOOKUP(ТЗанятияФитнесСтар[Зал],#REF!,2,FALSE)","v":{"$error":"#REF!"}}]
[null,{"$f":"TEXT(ТЗанятияФитнесСтар[Дата занятия],\"ДДД\")","v":"Сб"},{"$f":"WEEKNUM(ТЗанятияФитнесСтар[[#This Row],[Дата занятия]],21)","v":52},null,null,{"$f":"VLOOKUP(ТЗанятияФитнесСтар[Зал],#REF!,2,FALSE)","v":{"$error":"#REF!"}}]
[null,{"$f":"TEXT(ТЗанятияФитнесСтар[Дата занятия],\"ДДД\")","v":"Сб"},{"$f":"WEEKNUM(ТЗанятияФитнесСтар[[#This Row],[Дата занятия]],21)","v":52},null,null,{"$f":"VLOOKUP(ТЗанятияФитнесСтар[Зал],#REF!,2,FALSE)","v":{"$error":"#REF!"}}]
[null,{"$f":"TEXT(ТЗанятияФитнесСтар[Дата занятия],\"ДДД\")","v":"Сб"},{"$f":"WEEKNUM(ТЗанятияФитнесСтар[[#This Row],[Дата занятия]],21)","v":52},null,null,{"$f":"VLOOKUP(ТЗанятияФитнесСтар[Зал],#REF!,2,FALSE)","v":{"$error":"#REF!"}}]
[null,{"$f":"TEXT(ТЗанятияФитнесСтар[Дата занятия],\"ДДД\")","v":"Сб"},{"$f":"WEEKNUM(ТЗанятияФитнесСтар[[#This Row],[Дата занятия]],21)","v":52},null,null,{"$f":"VLOOKUP(ТЗанятияФитнесСтар[Зал],#REF!,2,FALSE)","v":{"$error":"#REF!"}}]
[null,{"$f":"TEXT(ТЗанятияФитнесСтар[Дата занятия],\"ДДД\")","v":"Сб"},{"$f":"WEEKNUM(ТЗанятияФитнесСтар[[#This Row],[Дата занятия]],21)","v":52},null,null,{"$f":"VLOOKUP(ТЗанятияФитнесСтар[Зал],#REF!,2,FALSE)","v":{"$error":"#REF!"}}]
[null,{"$f":"TEXT(ТЗанятияФитнесСтар[Дата занятия],\"ДДД\")","v":"Сб"},{"$f":"WEEKNUM(ТЗанятияФитнесСтар[[#This Row],[Дата занятия]],21)","v":52},null,null,{"$f":"VLOOKUP(ТЗанятияФитнесСтар[Зал],#REF!,2,FALSE)","v":{"$error":"#REF!"}}]
[null,{"$f":"TEXT(ТЗанятияФитнесСтар[Дата занятия],\"ДДД\")","v":"Сб"},{"$f":"WEEKNUM(ТЗанятияФитнесСтар[[#This Row],[Дата занятия]],21)","v":52},null,null,{"$f":"VLOOKUP(ТЗанятияФитнесСтар[Зал],#REF!,2,FALSE)","v":{"$error":"#REF!"}}]
[null,{"$f":"TEXT(ТЗанятияФитнесСтар[Дата занятия],\"ДДД\")","v":"Сб"},{"$f":"WEEKNUM(ТЗанятияФитнесСтар[[#This Row],[Дата занятия]],21)","v":52},null,null,{"$f":"VLOOKUP(ТЗанятияФитнесСтар[Зал],#REF!,2,FALSE)","v":{"$error":"#REF!"}}]
[null,{"$f":"TEXT(ТЗанятияФитнесСтар[Дата занятия],\"ДДД\")","v":"Сб"},{"$f":"WEEKNUM(ТЗанятияФитнесСтар[[#This Row],[Дата занятия]],21)","v":52},null,null,{"$f":"VLOOKUP(ТЗанятияФитнесСтар[Зал],#REF!,2,FALSE)","v":{"$error":"#REF!"}}]
[null,{"$f":"TEXT(ТЗанятияФитнесСтар[Дата занятия],\"ДДД\")","v":"Сб"},{"$f":"WEEKNUM(ТЗанятияФитнесСтар[[#This Row],[Дата занятия]],21)","v":52},null,null,{"$f":"VLOOKUP(ТЗанятияФитнесСтар[Зал],#REF!,2,FALSE)","v":{"$error":"#REF!"}}]
[null,{"$f":"TEXT(ТЗанятияФитнесСтар[Дата занятия],\"ДДД\")","v":"Сб"},{"$f":"WEEKNUM(ТЗанятияФитнесСтар[[#This Row],[Дата занятия]],21)","v":52},null,null,{"$f":"VLOOKUP(ТЗанятияФитнесСтар[Зал],#REF!,2,FALSE)","v":{"$error":"#REF!"}}]
[null,{"$f":"TEXT(ТЗанятияФитнесСтар[Дата занятия],\"ДДД\")","v":"Сб"},{"$f":"WEEKNUM(ТЗанятияФитнесСтар[[#This Row],[Дата занятия]],21)","v":52},null,null,{"$f":"VLOOKUP(ТЗанятияФитнесСтар[Зал],#REF!,2,FALSE)","v":{"$error":"#REF!"}}]
[null,{"$f":"TEXT(ТЗанятияФитнесСтар[Дата занятия],\"ДДД\")","v":"Сб"},{"$f":"WEEKNUM(ТЗанятияФитнесСтар[[#This Row],[Дата занятия]],21)","v":52},null,null,{"$f":"VLOOKUP(ТЗанятияФитнесСтар[Зал],#REF!,2,FALSE)","v":{"$error":"#REF!"}}]
[null,{"$f":"TEXT(ТЗанятияФитнесСтар[Дата занятия],\"ДДД\")","v":"Сб"},{"$f":"WEEKNUM(ТЗанятияФитнесСтар[[#This Row],[Дата занятия]],21)","v":52},null,null,{"$f":"VLOOKUP(ТЗанятияФитнесСтар[Зал],#REF!,2,FALSE)","v":{"$error":"#REF!"}}]
[null,{"$f":"TEXT(ТЗанятияФитнесСтар[Дата занятия],\"ДДД\")","v":"Сб"},{"$f":"WEEKNUM(ТЗанятияФитнесСтар[[#This Row],[Дата занятия]],21)","v":52},null,null,{"$f":"VLOOKUP(ТЗанятияФитнесСтар[Зал],#REF!,2,FALSE)","v":{"$error":"#REF!"}}]
[null,{"$f":"TEXT(ТЗанятияФитнесСтар[Дата занятия],\"ДДД\")","v":"Сб"},{"$f":"WEEKNUM(ТЗанятияФитнесСтар[[#This Row],[Дата занятия]],21)","v":52},null,null,{"$f":"VLOOKUP(ТЗанятияФитнесСтар[Зал],#REF!,2,FALSE)","v":{"$error":"#REF!"}}]
[null,{"$f":"TEXT(ТЗанятияФитнесСтар[Дата занятия],\"ДДД\")","v":"Сб"},{"$f":"WEEKNUM(ТЗанятияФитнесСтар[[#This Row],[Дата занятия]],21)","v":52},null,null,{"$f":"VLOOKUP(ТЗанятияФитнесСтар[Зал],#REF!,2,FALSE)","v":{"$error":"#REF!"}}]
[null,{"$f":"TEXT(ТЗанятияФитнесСтар[Дата занятия],\"ДДД\")","v":"Сб"},{"$f":"WEEKNUM(ТЗанятияФитнесСтар[[#This Row],[Дата занятия]],21)","v":52},null,null,{"$f":"VLOOKUP(ТЗанятияФитнесСтар[Зал],#REF!,2,FALSE)","v":{"$error":"#REF!"}}]
[null,{"$f":"TEXT(ТЗанятияФитнесСтар[Дата занятия],\"ДДД\")","v":"Сб"},{"$f":"WEEKNUM(ТЗанятияФитнесСтар[[#This Row],[Дата занятия]],21)","v":52},null,null,{"$f":"VLOOKUP(ТЗанятияФитнесСтар[Зал],#REF!,2,FALSE)","v":{"$error":"#REF!"}}]
[null,{"$f":"TEXT(ТЗанятияФитнесСтар[Дата занятия],\"ДДД\")","v":"Сб"},{"$f":"WEEKNUM(ТЗанятияФитнесСтар[[#This Row],[Дата занятия]],21)","v":52},null,null,{"$f":"VLOOKUP(ТЗанятияФитнесСтар[Зал],#REF!,2,FALSE)","v":{"$error":"#REF!"}}]
[null,{"$f":"TEXT(ТЗанятияФитнесСтар[Дата занятия],\"ДДД\")","v":"Сб"},{"$f":"WEEKNUM(ТЗанятияФитнесСтар[[#This Row],[Дата занятия]],21)","v":52},null,null,{"$f":"VLOOKUP(ТЗанятияФитнесСтар[Зал],#REF!,2,FALSE)","v":{"$error":"#REF!"}}]
[null,{"$f":"TEXT(ТЗанятияФитнесСтар[Дата занятия],\"ДДД\")","v":"Сб"},{"$f":"WEEKNUM(ТЗанятияФитнесСтар[[#This Row],[Дата занятия]],21)","v":52},null,null,{"$f":"VLOOKUP(ТЗанятияФитнесСтар[Зал],#REF!,2,FALSE)","v":{"$error":"#REF!"}}]
[null,{"$f":"TEXT(ТЗанятияФитнесСтар[Дата занятия],\"ДДД\")","v":"Сб"},{"$f":"WEEKNUM(ТЗанятияФитнесСтар[[#This Row],[Дата занятия]],21)","v":52},null,null,{"$f":"VLOOKUP(ТЗанятияФитнесСтар[Зал],#REF!,2,FALSE)","v":{"$error":"#REF!"}}]
[null,{"$f":"TEXT(ТЗанятияФитнесСтар[Дата занятия],\"ДДД\")","v":"Сб"},{"$f":"WEEKNUM(ТЗанятияФитнесСтар[[#This Row],[Дата занятия]],21)","v":52},null,null,{"$f":"VLOOKUP(ТЗанятияФитнесСтар[Зал],#REF!,2,FALSE)","v":{"$error":"#REF!"}}]
[null,{"$f":"TEXT(ТЗанятияФитнесСтар[Дата занятия],\"ДДД\")","v":"Сб"},{"$f":"WEEKNUM(ТЗанятияФитнесСтар[[#This Row],[Дата занятия]],21)","v":52},null,null,{"$f":"VLOOKUP(ТЗанятияФитнесСтар[Зал],#REF!,2,FALSE)","v":{"$error":"#REF!"}}]
[null,{"$f":"TEXT(ТЗанятияФитнесСтар[Дата занятия],\"ДДД\")","v":"Сб"},{"$f":"WEEKNUM(ТЗанятияФитнесСтар[[#This Row],[Дата занятия]],21)","v":52},null,null,{"$f":"VLOOKUP(ТЗанятияФитнесСтар[Зал],#REF!,2,FALSE)","v":{"$error":"#REF!"}}]
[null,{"$f":"TEXT(ТЗанятияФитнесСтар[Дата занятия],\"ДДД\")","v":"Сб"},{"$f":"WEEKNUM(ТЗанятияФитнесСтар[[#This Row],[Дата занятия]],21)","v":52},null,null,{"$f":"VLOOKUP(ТЗанятияФитнесСтар[Зал],#REF!,2,FALSE)","v":{"$error":"#REF!"}}]
[null,{"$f":"TEXT(ТЗанятияФитнесСтар[Дата занятия],\"ДДД\")","v":"Сб"},{"$f":"WEEKNUM(ТЗанятияФитнесСтар[[#This Row],[Дата занятия]],21)","v":52},null,null,{"$f":"VLOOKUP(ТЗанятияФитнесСтар[Зал],#REF!,2,FALSE)","v":{"$error":"#REF!"}}]
[null,{"$f":"TEXT(ТЗанятияФитнесСтар[Дата занятия],\"ДДД\")","v":"Сб"},{"$f":"WEEKNUM(ТЗанятияФитнесСтар[[#This Row],[Дата занятия]],21)","v":52},null,null,{"$f":"VLOOKUP(ТЗанятияФитнесСтар[Зал],#REF!,2,FALSE)","v":{"$error":"#REF!"}}]
[null,{"$f":"TEXT(ТЗанятияФитнесСтар[Дата занятия],\"ДДД\")","v":"Сб"},{"$f":"WEEKNUM(ТЗанятияФитнесСтар[[#This Row],[Дата занятия]],21)","v":52},null,null,{"$f":"VLOOKUP(ТЗанятияФитнесСтар[Зал],#REF!,2,FALSE)","v":{"$error":"#REF!"}}]
[null,{"$f":"TEXT(ТЗанятияФитнесСтар[Дата занятия],\"ДДД\")","v":"Сб"},{"$f":"WEEKNUM(ТЗанятияФитнесСтар[[#This Row],[Дата занятия]],21)","v":52},null,null,{"$f":"VLOOKUP(ТЗанятияФитнесСтар[Зал],#REF!,2,FALSE)","v":{"$error":"#REF!"}}]
[null,{"$f":"TEXT(ТЗанятияФитнесСтар[Дата занятия],\"ДДД\")","v":"Сб"},{"$f":"WEEKNUM(ТЗанятияФитнесСтар[[#This Row],[Дата занятия]],21)","v":52},null,null,{"$f":"VLOOKUP(ТЗанятияФитнесСтар[Зал],#REF!,2,FALSE)","v":{"$error":"#REF!"}}]
[null,{"$f":"TEXT(ТЗанятияФитнесСтар[Дата занятия],\"ДДД\")","v":"Сб"},{"$f":"WEEKNUM(ТЗанятияФитнесСтар[[#This Row],[Дата занятия]],21)","v":52},null,null,{"$f":"VLOOKUP(ТЗанятияФитнесСтар[Зал],#REF!,2,FALSE)","v":{"$error":"#REF!"}}]
[null,{"$f":"TEXT(ТЗанятияФитнесСтар[Дата занятия],\"ДДД\")","v":"Сб"},{"$f":"WEEKNUM(ТЗанятияФитнесСтар[[#This Row],[Дата занятия]],21)","v":52},null,null,{"$f":"VLOOKUP(ТЗанятияФитнесСтар[Зал],#REF!,2,FALSE)","v":{"$error":"#REF!"}}]
[null,{"$f":"TEXT(ТЗанятияФитнесСтар[Дата занятия],\"ДДД\")","v":"Сб"},{"$f":"WEEKNUM(ТЗанятияФитнесСтар[[#This Row],[Дата занятия]],21)","v":52},null,null,{"$f":"VLOOKUP(ТЗанятияФитнесСтар[Зал],#REF!,2,FALSE)","v":{"$error":"#REF!"}}]
[null,{"$f":"TEXT(ТЗанятияФитнесСтар[Дата занятия],\"ДДД\")","v":"Сб"},{"$f":"WEEKNUM(ТЗанятияФитнесСтар[[#This Row],[Дата занятия]],21)","v":52},null,null,{"$f":"VLOOKUP(ТЗанятияФитнесСтар[Зал],#REF!,2,FALSE)","v":{"$error":"#REF!"}}]
[null,{"$f":"TEXT(ТЗанятияФитнесСтар[Дата занятия],\"ДДД\")","v":"Сб"},{"$f":"WEEKNUM(ТЗанятияФитнесСтар[[#This Row],[Дата занятия]],21)","v":52},null,null,{"$f":"VLOOKUP(ТЗанятияФитнесСтар[Зал],#REF!,2,FALSE)","v":{"$error":"#REF!"}}]
[null,{"$f":"TEXT(ТЗанятияФитнесСтар[Дата занятия],\"ДДД\")","v":"Сб"},{"$f":"WEEKNUM(ТЗанятияФитнесСтар[[#This Row],[Дата занятия]],21)","v":52},null,null,{"$f":"VLOOKUP(ТЗанятияФитнесСтар[Зал],#REF!,2,FALSE)","v":{"$error":"#REF!"}}]
[null,{"$f":"TEXT(ТЗанятияФитнесСтар[Дата занятия],\"ДДД\")","v":"Сб"},{"$f":"WEEKNUM(ТЗанятияФитнесСтар[[#This Row],[Дата занятия]],21)","v":52},null,null,{"$f":"VLOOKUP(ТЗанятияФитнесСтар[Зал],#REF!,2,FALSE)","v":{"$error":"#REF!"}}]